[Event "Israel-ch Women 2021"]
[Site "Haifa"]
[Date "2021.03.14"]
[Round "8.21"]
[White "Aleksandrova, Aleksandra"]
[Black "Orian, Noga"]
[Result "0-1"]
[ECO "A46"]
[WhiteElo "1769"]
[BlackElo "1658"]
[Annotator "NA"]
[PlyCount "116"]
[EventDate "2021.01.10"]
[EventType "swiss"]
[EventCountry "ISR"]
[SourceTitle "playchess.com"]
[Source "ChessBase"]
[SourceQuality "1"]
[TimeControl "40/5400+30:3600+30"]

1. d4 {[%emt 0:00:00]} Nf6 {[%emt 0:00:00]} 2. Nd2 {[%emt 0:00:00]} d6 {[%emt 0:00:00]} 3. e4 {[%emt 0:00:00]} e5 {[%emt 0:00:00]} 4. dxe5 {[%emt 0:00:00]} dxe5 {[%emt 0:00:00]} 5. Ngf3 {[%emt 0:00:01]} Nbd7 {[%emt 0:06:29]} 6. Bc4 {[%emt 0:00:40]} h6 {[%emt 0:00:39]} 7. c3 {[%emt 0:00:57]} Be7 {[%emt 0:01:25]} 8. b4 {[%emt 0:01:58]} O-O {[%emt 0:01:07]} 9. a4 {[%emt 0:01:19]} c6 {[%emt 0:02:00]} 10. Bb2 {[%emt 0:01:28]} Qc7 {[%emt 0:04:38]} 11. Qc2 {[%emt 0:07:07]} a5 {[%emt 0:02:41]} 12. Nh4 {[%emt 0:14:27]} Nb6 {[%emt 0:07:22]} 13. bxa5 {[%emt 0:05:23]} Rxa5 {[%emt 0:04:30]} 14. Bb3 {[%emt 0:01:39]} c5 {[%emt 0:13:24]} 15. Ba3 {[%emt 0:02:13]} Be6 {[%emt 0:16:36]} 16. Bxe6 {[%emt 0:06:23]} fxe6 {[%emt 0:00:04]} 17. Rb1 {[%emt 0:01:17]} Kf7 {[%emt 0:09:20]} 18. O-O {[%emt 0:24:54]} Nfd7 {[%emt 0:03:27]} 19. Nhf3 {[%emt 0:11:18]} Rxa4 {[%emt 0:00:24]} 20. Bc1 {[%emt 0:03:14]} Rfa8 {[%emt 0:02:43]} 21. Qd3 {[%emt 0:03:37]} c4 {[%emt 0:09:17]} 22. Qe2 {[%emt 0:00:02]} Ra2 {[%emt 0:02:10]} 23. Nh4 {[%emt 0:01:29]} Bxh4 {[%emt 0:01:27]} 24. Qh5+ {[%emt 0:00:04]} Kg8 {[%emt 0:00:36]} 25. Qxh4 {[%emt 0:00:01]} Nc5 {[%emt 0:02:57]} 26. Nf3 {[%emt 0:01:36]} Ra1 {[%emt 0:07:43]} 27. Be3 {[%emt 0:03:08]} Rxb1 {[%emt 0:00:05]} 28. Rxb1 {[%emt 0:00:01]} Nba4 {[%emt 0:00:21]} 29. h3 {[%emt 0:05:43]} Nxc3 {[%emt 0:01:10]} 30. Re1 {[%emt 0:00:02]} Nd3 {[%emt 0:01:21]} 31. Rf1 {[%emt 0:01:07]} Ne2+ {[%emt 0:00:04]} 32. Kh2 {[%emt 0:00:59]} c3 {[%emt 0:00:54]} 33. Qg4 {[%emt 0:01:25]} c2 {[%emt 0:01:02]} 34. Bxh6 {[%emt 0:00:27]} c1=Q {[%emt 0:00:30]} 35. Bxc1 {[%emt 0:01:05]} Nexc1 {[%emt 0:00:03]} 36. Ng5 {[%emt 0:00:26]} Re8 {[%emt 0:00:58]} 37. Qh5 {[%emt 0:00:35]} Kf8 {[%emt 0:00:26]} 38. Qh8+ {[%emt 0:01:40]} Ke7 {[%emt 0:00:09]} 39. Qxg7+ {[%emt 0:00:16]} Kd8 {[%emt 0:00:09]} 40. Qf6+ {[%emt 0:00:21]} Qe7 {[%emt 0:01:08]} 41. Qh6 {[%emt 0:34:03]} b5 {[%emt 0:31:36]} 42. Nf3 {[%emt 0:00:52]} Qc5 {[%emt 0:06:41]} 43. Qd2 {[%emt 0:05:45]} Kc7 {[%emt 0:00:26]} 44. Rd1 {[%emt 0:01:25]} b4 {[%emt 0:02:43]} 45. Ne1 {[%emt 0:00:22]} Rd8 {[%emt 0:00:14]} 46. Qh6 {[%emt 0:04:32]} b3 {[%emt 0:01:50]} 47. Nxd3 {[%emt 0:00:52]} Nxd3 {[%emt 0:00:14]} 48. Qxe6 {[%emt 0:00:25]} b2 {[%emt 0:05:16]} 49. Qf7+ {[%emt 0:05:25]} Rd7 {[%emt 0:01:02]} 50. Qb3 {[%emt 0:00:38]} Qxf2 {[%emt 0:05:27]} 51. Qc3+ {[%emt 0:00:47]} Qc5 {[%emt 0:04:37]} 52. Rxd3 {[%emt 0:01:14]} Qxc3 {[%emt 0:00:23]} 53. Rxc3+ {[%emt 0:00:02]} Kb8 {[%emt 0:00:25]} 54. Rb3+ {[%emt 0:02:20]} Rb7 {[%emt 0:00:06]} 55. Rxb2 {[%emt 0:00:05]} Rxb2 {[%emt 0:00:05]} 56. Kg3 {[%emt 0:00:04]} Kc8 {[%emt 0:00:39]} 57. Kf3 {[%emt 0:00:02]} Kd7 {[%emt 0:00:54]} 58. h4 {[%emt 0:02:31]} Ke6 {[%emt 0:00:22]} 0-1

[Event "Israel-ch Women 2021"]
[Site "Haifa"]
[Date "2021.03.14"]
[Round "8.22"]
[White "Kochavi, Dana"]
[Black "Levitan, Ronit"]
[Result "1-0"]
[ECO "C80"]
[WhiteElo "1572"]
[BlackElo "2048"]
[Annotator "NA"]
[PlyCount "55"]
[EventDate "2021.01.10"]
[EventType "swiss"]
[EventCountry "ISR"]
[SourceTitle "playchess.com"]
[Source "ChessBase"]
[SourceQuality "1"]
[TimeControl "40/5400+30:3600+30"]

{[%evp 9,45,20,46,41,23,30,39,31,29,33,37,32767,1,-7,35,16,25,21,35,19,23,32767,80,69,66,32767,32767,32767,87,51,49,34,32767,32767,32767,32767,60,50]} 1. e4 {[%emt 0:00:00]} e5 {[%emt 0:00:13]} 2. Nf3 {[%emt 0:00:00]} Nc6 {[%emt 0:00:17]} 3. Bb5 {[%emt 0:00:00]} a6 {[%emt 0:00:05]} 4. Ba4 {[%emt 0:00:00]} Nf6 {[%emt 0:00:06]} 5. O-O {[%emt 0:00:04]} Nxe4 {[%emt 0:00:13]} 6. d4 {[%emt 0:00:07]} b5 {[%emt 0:00:13]} 7. Bb3 {[%emt 0:00:05]} d5 {[%emt 0:00:04]} 8. dxe5 {[%emt 0:00:05]} Be6 {[%emt 0:00:05]} 9. Nbd2 {[%emt 0:00:35]} Nc5 {[%emt 0:00:45]} 10. Re1 {[%emt 0:09:07]} Be7 {[%emt 0:13:22]} 11. c3 {[%emt 0:05:06]} Bf5 {[%emt 0:03:43]} 12. Nf1 {[%emt 0:05:50]} Nxb3 {[%emt 0:04:09]} 13. axb3 {[%emt 0:00:25]} O-O {[%emt 0:02:24]} 14. Ng3 {[%emt 0:05:32]} Bg6 {[%emt 0:05:17]} 15. h4 {[%emt 1:10:34]} Bxh4 {[%emt 0:29:06]} (15... h6 $11 {remains equal.}) 16. Nxh4 {[%emt 0:00:00]} Qxh4 {[%emt 0:00:06]} 17. Qxd5 {[%emt 0:00:00]} Ne7 {[%emt 0:00:37]} 18. Qb7 {[%emt 0:01:30]} Nf5 {[%emt 0:06:44]} 19. Nxf5 {[%emt 0:00:00]} Bxf5 {[%emt 0:32:01]} 20. Rxa6 {[%emt 0:01:00]} Rxa6 {[%emt 0:00:00]} 21. Qxa6 {[%emt 0:00:30]} b4 {[%emt 0:01:00]} 22. Be3 {[%emt 0:00:30]} Rd8 {[%emt 0:00:30]} 23. Qb7 $14 {[%emt 0:00:30]} bxc3 {[%emt 0:00:30]} 24. bxc3 {[%emt 0:00:30]} Rc8 {[%emt 0:00:30]} 25. Bc5 {[%emt 0:00:30]} Qg5 {[%emt 0:00:00]} 26. e6 {[%emt 0:00:00]} Rd8 {[%emt 0:01:00]} 27. e7 {[%emt 0:00:00]} Re8 {[%emt 0:00:00]} 28. Qc6 {[%emt 0:00:00]} 1-0

[Event "Israel-ch Women 2021"]
[Site "Haifa"]
[Date "2021.03.14"]
[Round "8.23"]
[White "Vardi, Shlomit"]
[Black "Shaul Seidner, Liad"]
[Result "0-1"]
[ECO "B23"]
[WhiteElo "1901"]
[BlackElo "1687"]
[Annotator "ChessBase"]
[PlyCount "102"]
[EventDate "2021.01.10"]
[EventType "swiss"]
[EventCountry "ISR"]
[SourceTitle "playchess.com"]
[Source "ChessBase"]
[SourceQuality "1"]
[TimeControl "40/5400+30:3600+30"]

1. e4 {[%emt 0:00:00]} c5 {[%emt 0:00:00]} 2. Nc3 {[%emt 0:00:00]} a6 {[%emt 0:00:00]} 3. g3 {[%emt 0:01:29]} b5 {[%emt 0:00:00]} 4. Bg2 {[%emt 0:00:28]} Bb7 {[%emt 0:00:11]} 5. d3 {[%emt 0:01:38]} e6 {[%emt 0:00:17]} 6. f4 {[%emt 0:01:32]} b4 {[%emt 0:00:49]} 7. Nb1 {[%emt 0:00:58]} d5 {[%emt 0:00:25]} 8. Nd2 {[%emt 0:01:13]} Be7 {[%emt 0:05:34]} 9. Nh3 {[%emt 0:00:58]} h5 {[%emt 0:10:48]} 10. O-O {[%emt 0:01:32]} Nf6 {[%emt 0:08:15]} 11. Nf2 {[%emt 0:02:23]} Nc6 {[%emt 0:02:33]} 12. e5 {[%emt 0:06:52]} Ng8 {[%emt 0:01:10]} 13. Nf3 {[%emt 0:01:45]} Nh6 {[%emt 0:03:28]} 14. Bh3 {[%emt 0:01:52]} g6 {[%emt 0:01:28]} 15. a3 {[%emt 0:07:46]} a5 {[%emt 0:03:44]} 16. Bd2 {[%emt 0:08:15]} Nf5 {[%emt 0:05:35]} 17. Bxf5 {[%emt 0:02:39]} gxf5 {[%emt 0:00:15]} 18. axb4 {[%emt 0:01:55]} axb4 {[%emt 0:00:33]} 19. Rxa8 {[%emt 0:00:17]} Qxa8 {[%emt 0:00:27]} 20. d4 {[%emt 0:00:20]} c4 {[%emt 0:01:32]} 21. Qa1 {[%emt 0:00:35]} Kd7 {[%emt 0:02:50]} 22. h3 {[%emt 0:03:11]} Ba6 {[%emt 0:04:31]} 23. c3 {[%emt 0:02:16]} b3 {[%emt 0:01:01]} 24. Qa4 {[%emt 0:00:22]} Qb7 {[%emt 0:00:30]} 25. Qa1 {[%emt 0:00:30]} Bb5 {[%emt 0:01:05]} 26. Qd1 {[%emt 0:01:59]} Qa8 {[%emt 0:10:12]} 27. Kh2 {[%emt 0:10:49]} Qa2 {[%emt 0:01:41]} 28. Bc1 {[%emt 0:00:08]} Na7 {[%emt 0:07:58]} 29. h4 {[%emt 0:12:30]} Nc8 {[%emt 0:01:18]} 30. Nh3 {[%emt 0:01:25]} Nb6 {[%emt 0:00:51]} 31. Nfg5 {[%emt 0:00:13]} Ke8 {[%emt 0:01:42]} 32. Rf2 {[%emt 0:04:02]} Bd7 {[%emt 0:01:47]} 33. Kg2 {[%emt 0:00:44]} Na4 {[%emt 0:03:02]} 34. Qd2 {[%emt 0:00:49]} Bd8 {[%emt 0:00:54]} 35. Ng1 {[%emt 0:01:42]} Kf8 {[%emt 0:02:29]} 36. Qe3 {[%emt 0:12:46]} Ba5 {[%emt 0:01:06]} 37. N1f3 {[%emt 0:00:32]} Kg7 {[%emt 0:02:05]} 38. Nh2 {[%emt 0:00:32]} Qb1 {[%emt 0:02:16]} 39. Nhf3 {[%emt 0:00:22]} Kg6 {[%emt 0:02:13]} 40. Nh2 {[%emt 0:04:22]} Bxc3 {[%emt 0:04:14]} 41. bxc3 {[%emt 1:00:10]} b2 {[%emt 1:00:07]} 42. Bxb2 {[%emt 0:01:13]} Nxb2 {[%emt 0:00:07]} 43. Qd2 {[%emt 0:01:03]} Nd3 {[%emt 0:02:52]} 44. Rf1 {[%emt 0:00:46]} Qb3 {[%emt 0:00:45]} 45. Ra1 {[%emt 0:02:03]} Ba4 {[%emt 0:01:15]} 46. Nf1 {[%emt 0:00:30]} Rb8 {[%emt 0:01:00]} 47. Nf3 {[%emt 0:00:25]} Qb5 {[%emt 0:03:24]} 48. Ne1 {[%emt 0:00:42]} Nxe1+ {[%emt 0:00:21]} 49. Rxe1 {[%emt 0:00:06]} Qb2 {[%emt 0:00:26]} 50. Rc1 {[%emt 0:02:05]} Qxd2+ {[%emt 0:00:22]} 51. Nxd2 {[%emt 0:00:04]} Rb2 {[%emt 0:00:12]} 0-1

[Event "Israel-ch Women 2021"]
[Site "Haifa"]
[Date "2021.03.15"]
[Round "9.5"]
[White "Lian, Marina"]
[Black "Aleksandrova, Aleksandra"]
[Result "1-0"]
[ECO "B12"]
[WhiteElo "1870"]
[BlackElo "1769"]
[Annotator "NA RC"]
[PlyCount "57"]
[EventDate "2021.01.10"]
[EventType "swiss"]
[EventCountry "ISR"]
[SourceTitle "playchess.com"]
[Source "ChessBase"]
[SourceQuality "1"]
[TimeControl "40/5400+30:3600+30"]

{[%evp 8,57,70,47,32767,32767,32767,32767,32767,32767,32767,32767,32767,32767,32767,32767,32767,92,85,79,32767,32767,32767,45,88,87,88,89,372,382,352,375,413,460,732,749,741,650,586,732,618,630,1548,2537,1156,889,912,889,29991,29983,29979,7567]} 1. e4 {[%emt 0:00:00]} d6 {[%emt 0:00:00]} 2. d4 {[%emt 0:00:08]} c6 {[%emt 0:00:00]} 3. Nc3 {[%emt 0:00:08]} Qc7 {[%emt 0:00:00]} 4. f4 {[%emt 0:00:21]} e5 {[%emt 0:00:14]} 5. Nf3 {[%emt 0:00:31]} Nd7 {[%emt 0:00:12]} 6. Bc4 {[%emt 0:00:14]} Be7 {[%emt 0:00:10]} 7. O-O {[%emt 0:00:08]} Ngf6 {[%emt 0:00:31]} 8. fxe5 {[%emt 0:01:49]} dxe5 {[%emt 0:00:05]} 9. Nxe5 {[%emt 0:00:40]} Nxe5 {[%emt 0:01:03]} 10. Bf4 {[%emt 0:00:36]} Bd6 {[%emt 0:00:24]} 11. dxe5 {[%emt 0:00:15]} Bxe5 {[%emt 0:00:14] [#]} 12. Bxf7+ $1 {[%emt 0:01:08]} Ke7 $1 {[%emt 0:03:50]} ({Don't go for} 12... Kxf7 $2 {[#]} 13. Qh5+ $3 {[%mdl 512]} Nxh5 14. Bxe5+ {[%mdl 64] Discovered Attack} Kg6 15. Bxc7 $16) 13. Bxe5 {[%emt 0:00:29]} Qxe5 {[%emt 0:00:02]} 14. Bb3 {[%emt 0:00:09]} Ng4 {[%emt 0:05:31]} 15. Rf7+ {[%emt 0:02:09]} Ke8 {[%emt 0:00:04]} 16. g3 {[%emt 0:02:52]} ({Avoid the trap} 16. h3 $2 Qh2+ 17. Kf1 Ne3+ {[%mdl 64] Double Attack} 18. Kf2 Nxd1+ $19) 16... Qc5+ {[%emt 0:02:27]} 17. Kh1 {[%emt 0:00:17]} Nf2+ $2 {[%emt 0:01:05] [#]} (17... Rf8 $16 {was called for.} 18. Na4 Nf2+ 19. Rxf2 {[%mdl 64] Deflection} Qxf2 20. Qh5+ {[%mdl 64] Double Attack} Rf7) 18. Rxf2 $1 {[%emt 1:27:06]} Qxf2 19. Qh5+ {[%emt 0:00:00]} Ke7 {[%emt 0:22:22]} 20. Rd1 {[%emt 0:00:00]} Qf6 {[%emt 0:04:29]} (20... Re8 $142 21. Bc4 (21. Qxh7 Qf3+ 22. Kg1 Qe3+ 23. Kg2 Qh6 $11) 21... Bd7) 21. e5 {[%emt 0:00:00]} Qf5 {[%emt 0:00:45]} 22. Qh4+ {[%emt 0:00:00]} g5 {[%emt 0:01:08] [#]} 23. Qb4+ $1 {[%emt 0:00:00]} ({Inferior is} 23. Qd4 Qf3+ 24. Kg1 Bh3 $11) 23... Ke8 {[%emt 0:00:17] [#]} 24. Kg1 $1 {[%emt 0:00:00]} a5 {[%emt 0:30:52]} 25. Qd6 {[%emt 0:00:00]} Qd7 {[%emt 0:25:18]} 26. Qf6 {[%emt 0:00:00] Decoy} Rf8 {[%emt 0:00:42]} 27. Qxg5 {[%emt 0:00:00]} ({Weaker is} 27. Rxd7 Rxf6 28. Rg7 (28. Rxh7 Bf5 $16) 28... Rf5 $16) 27... Qc7 {[%emt 0:00:53]} 28. Qh5+ {[%emt 0:00:00]} Rf7 {[%emt 0:00:17]} 29. Ne4 $18 {[%emt 0:00:00]} 1-0

[Event "Israel-ch Women 2021"]
[Site "Haifa"]
[Date "2021.03.15"]
[Round "9.6"]
[White "Shaul Seidner, Liad"]
[Black "Gadasi, Noam"]
[Result "1/2-1/2"]
[ECO "B52"]
[WhiteElo "1687"]
[BlackElo "1781"]
[Annotator "NA RC"]
[PlyCount "97"]
[EventDate "2021.01.10"]
[EventType "swiss"]
[EventCountry "ISR"]
[SourceTitle "playchess.com"]
[Source "ChessBase"]
[SourceQuality "1"]
[TimeControl "40/5400+30:3600+30"]

1. e4 {[%emt 0:00:00]} c5 {[%emt 0:00:00]} 2. Nf3 {[%emt 0:00:00]} d6 {[%emt 0:00:00]} 3. Bb5+ {[%emt 0:00:00]} Bd7 {[%emt 0:00:15]} 4. Bxd7+ {[%emt 0:00:00]} Qxd7 {[%emt 0:00:15]} 5. O-O {[%emt 0:00:13]} Nc6 {[%emt 0:00:23]} 6. Re1 {[%emt 0:00:23]} Nf6 {[%emt 0:01:45]} 7. c3 {[%emt 0:03:59]} e6 {[%emt 0:00:40]} 8. d4 {[%emt 0:00:45]} cxd4 {[%emt 0:01:13]} 9. cxd4 {[%emt 0:00:20]} d5 {[%emt 0:00:57]} 10. e5 {[%emt 0:06:33]} Ne4 {[%emt 0:01:54]} 11. Nbd2 {[%emt 0:00:21]} Nxd2 {[%emt 0:02:33]} 12. Bxd2 {[%emt 0:00:30]} Be7 {[%emt 0:00:54]} 13. Rc1 {[%emt 0:01:30]} O-O {[%emt 0:00:52]} 14. a3 {[%emt 0:02:26]} a5 {[%emt 1:25:19]} 15. Qe2 {[%emt 0:19:45]} a4 {[%emt 0:00:00]} 16. Rc2 {[%emt 0:02:45]} Rfc8 {[%emt 0:01:00]} 17. Rec1 {[%emt 0:01:36]} Na7 {[%emt 0:00:00]} 18. Qd3 {[%emt 0:11:25]} Rxc2 {[%emt 0:00:00]} 19. Rxc2 {[%emt 0:02:37]} Rc8 {[%emt 0:00:00]} 20. g3 {[%emt 0:02:41]} Rxc2 {[%emt 0:00:00]} 21. Qxc2 {[%emt 0:00:03]} Qc6 {[%emt 0:00:00]} 22. Qxc6 {[%emt 0:07:54]} Nxc6 {[%emt 0:00:00]} 23. Kf1 {[%emt 0:01:02]} Kf8 {[%emt 0:00:00]} 24. Ke2 {[%emt 0:01:01]} f6 {[%emt 0:00:00]} 25. Kd3 {[%emt 0:02:49]} h6 {[%emt 0:00:00]} 26. exf6 {[%emt 0:04:40]} Bxf6 {[%emt 0:00:00]} 27. h4 {[%emt 0:28:12]} h5 {[%emt 0:05:30]} 28. Bc3 {[%emt 0:00:30]} Ke7 {[%emt 0:00:30]} 29. Ke3 {[%emt 0:00:30]} Kf7 {[%emt 0:00:30]} 30. Kf4 {[%emt 0:00:30]} Be7 {[%emt 0:00:30]} 31. Ne5+ {[%emt 0:00:30]} Ke8 {[%emt 0:00:00]} 32. Nxc6 {[%emt 0:00:00]} bxc6 {[%emt 0:01:00]} 33. Bb4 {[%emt 0:01:00]} Bf6 {[%emt 0:00:30]} 34. Bc5 {[%emt 0:00:30]} Kd7 {[%emt 0:00:30]} 35. Ke3 {[%emt 0:00:30]} e5 {[%emt 0:00:30]} 36. Kd3 {[%emt 0:00:00]} exd4 {[%emt 0:00:00]} 37. f3 {[%emt 0:00:00]} Be5 38. g4 hxg4 {[%emt 0:00:25]} 39. fxg4 {[%emt 0:00:00]} Bf6 {[%emt 0:00:53]} 40. g5 {[%emt 0:00:00]} Be5 {[%emt 0:00:29]} 41. h5 {[%emt 1:03:00]} Bf4 {[%emt 1:01:13]} 42. Bf8 {[%emt 0:00:30]} Bxg5 {[%emt 0:00:00]} 43. Bxg7 {[%emt 0:00:00]} Ke6 {[%emt 0:01:00]} 44. Bxd4 {[%emt 0:01:00]} Kf5 {[%emt 0:00:30]} 45. Kc3 {[%emt 0:00:00]} Be7 {[%emt 0:00:30]} 46. b3 {[%emt 0:01:00]} axb3 {[%emt 0:00:00]} 47. Kxb3 {[%emt 0:00:30]} Bxa3 {[%emt 0:00:00]} 48. Kxa3 {[%emt 0:00:00]} Kg5 {[%emt 0:00:00]} 49. Kb4 {[%emt 0:00:00]} 1/2-1/2

[Event "Israel-ch Women 2021"]
[Site "Haifa"]
[Date "2021.03.15"]
[Round "9.7"]
[White "Levitan, Ronit"]
[Black "Vardi, Shlomit"]
[Result "0-1"]
[ECO "B06"]
[WhiteElo "2048"]
[BlackElo "1901"]
[Annotator "RC"]
[PlyCount "120"]
[EventDate "2021.01.10"]
[EventType "swiss"]
[EventCountry "ISR"]
[SourceTitle "playchess.com"]
[Source "ChessBase"]
[SourceQuality "1"]
[TimeControl "40/5400+30:3600+30"]

1. e4 {[%emt 0:00:03]} d6 {[%emt 0:00:00]} 2. d4 {[%emt 0:00:05]} g6 {[%emt 0:00:00]} 3. Nc3 {[%emt 0:00:28]} Bg7 {[%emt 0:00:00]} 4. Nf3 {[%emt 0:00:17]} a6 {[%emt 0:00:14]} 5. a4 {[%emt 0:03:18]} Nf6 {[%emt 0:00:24]} 6. Be3 {[%emt 0:01:00]} O-O {[%emt 0:00:24]} 7. Qd2 {[%emt 0:01:53]} Nc6 {[%emt 0:11:22]} 8. Bh6 {[%emt 0:02:36]} e5 {[%emt 0:02:47]} 9. d5 {[%emt 0:08:09]} Ne7 {[%emt 0:00:19]} 10. Bxg7 {[%emt 0:05:41]} Kxg7 {[%emt 0:00:06]} 11. h4 {[%emt 0:00:30]} h5 {[%emt 0:04:04]} 12. Nh2 {[%emt 0:00:52]} Rb8 {[%emt 0:03:25]} 13. f4 {[%emt 0:12:26]} exf4 {[%emt 0:02:55]} 14. Qxf4 {[%emt 0:00:41]} c6 {[%emt 0:00:58]} 15. Bd3 {[%emt 0:10:23]} cxd5 {[%emt 0:02:33]} 16. O-O {[%emt 0:03:40]} Nc6 {[%emt 0:05:52]} 17. exd5 {[%emt 0:05:18]} Ne5 {[%emt 0:00:55]} 18. Qd4 {[%emt 0:00:20]} b5 {[%emt 0:11:19]} 19. a5 {[%emt 0:10:51]} Bg4 {[%emt 0:11:02]} 20. Rae1 {[%emt 0:11:47]} Qxa5 {[%emt 0:03:15]} 21. Kh1 {[%emt 0:15:06]} Qb6 {[%emt 0:03:54]} 22. Qf4 {[%emt 0:00:18]} Qd8 {[%emt 0:00:19]} 23. Be2 {[%emt 0:01:26]} b4 {[%emt 0:00:37]} 24. Ne4 {[%emt 0:01:07]} Nxd5 {[%emt 0:00:22]} 25. Qd2 {[%emt 0:00:05]} Be6 {[%emt 0:01:09]} 26. Ng5 {[%emt 0:00:30]} Qb6 {[%emt 0:04:58]} 27. Bf3 {[%emt 0:01:22]} Nc7 {[%emt 0:07:08]} 28. Qf4 {[%emt 0:01:12]} f6 {[%emt 0:02:29]} 29. Nxe6+ {[%emt 0:00:22]} Nxe6 {[%emt 0:00:05]} 30. Qg3 {[%emt 0:00:04]} Kh7 {[%emt 0:04:22]} 31. Bd5 {[%emt 0:00:10]} Ng7 {[%emt 0:00:36]} 32. Nf3 {[%emt 0:02:23]} Qc5 {[%emt 0:00:40]} 33. Be4 {[%emt 0:00:34]} f5 {[%emt 0:04:43]} 34. Ng5+ {[%emt 0:00:06]} Kg8 {[%emt 0:00:24]} 35. Bf3 {[%emt 0:00:32]} Rbe8 {[%emt 0:02:36]} 36. Nh3 {[%emt 0:00:55]} Qc4 {[%emt 0:04:30]} 37. Nf4 {[%emt 0:00:35]} Nxf3 {[%emt 0:01:42]} 38. Qxf3 {[%emt 0:00:07]} Rxe1 {[%emt 0:02:38]} 39. Rxe1 {[%emt 0:00:04]} Kh7 {[%emt 0:00:54]} 40. Re7 {[%emt 0:01:26]} Re8 {[%emt 0:01:47]} 41. Rxe8 {[%emt 0:38:09]} Nxe8 {[%emt 0:30:06]} 42. Qg3 {[%emt 0:00:52]} Qf7 {[%emt 0:01:18]} 43. Qe1 {[%emt 0:00:10]} Nf6 {[%emt 0:13:54]} 44. Qxb4 {[%emt 0:08:09]} Qe7 {[%emt 0:02:08]} 45. g3 {[%emt 0:07:34]} Ng4 {[%emt 0:02:31]} 46. Qd2 {[%emt 0:03:39]} Ne3 {[%emt 0:04:33]} 47. Nh3 {[%emt 0:02:10]} Qe4+ {[%emt 0:03:06]} 48. Kg1 {[%emt 0:00:06]} Qe5 {[%emt 0:00:23]} 49. Ng5+ {[%emt 0:00:09]} Kg7 {[%emt 0:00:15]} 50. Kf2 {[%emt 0:01:20]} Qxg3+ {[%emt 0:01:41]} 51. Kxg3 {[%emt 0:01:26]} Nf1+ {[%emt 0:00:05]} 52. Kf2 {[%emt 0:00:06]} Nxd2 {[%emt 0:00:06]} 53. Ne6+ {[%emt 0:01:28]} Kf6 {[%emt 0:00:15]} 54. Nc7 {[%emt 0:00:05]} a5 {[%emt 0:00:27]} 55. b3 {[%emt 0:00:41]} g5 {[%emt 0:01:22]} 56. hxg5+ {[%emt 0:00:39]} Kxg5 {[%emt 0:00:05]} 57. Ne6+ {[%emt 0:00:09]} Kg4 {[%emt 0:00:10]} 58. Nd4 {[%emt 0:00:56]} h4 {[%emt 0:00:17]} 59. Kg2 {[%emt 0:00:36]} h3+ {[%emt 0:00:24]} 60. Kh1 {[%emt 0:00:16]} f4 {[%emt 0:01:54]} 0-1